Cogmind - Beta 16.1 @@@ ROGUE MODE // 2026.04.12 @ 14:19:40 Player: Ammie Result: Destroyed by H-61 Shepherd with Heavy Assault Cannon Performance ------------- Evolutions (3) 1500 Regions Visited (5) 1000 Robots Destroyed (136) 680 Value Destroyed (4765) 4765 Prototype IDs (13) 260 Alien Tech Used (0) 0 Bonus (1517) 1517 TOTAL SCORE: 9722 Bonus ------- High Alert Combat Kills 817 Entered Garrisons 200 Used RIF Installer 500 Cogmind --------- Core Integrity 0/700 Matter 300/300 Energy 200/200 System Corruption 5% Temperature Cool (0) Movement Core (200) Ox3 Location -7/Factory Parts ------- > --- POWER (2) -------- Micro Nuclear Core Micro Nuclear Core > --- PROPULSION (3) --- (None) > --- UTILITY (5) ------ Advanced Targeting Computer Core Analyzer > --- WEAPON (3) ------- (None) > --- INVENTORY (5) ---- Authchip [R/Combat] Relay Coupler [Grunt] (23) Relay Coupler [Hunter] (17) Peak State ------------ > --- POWER ------------ Micro Nuclear Core Micro Nuclear Core > --- PROPULSION ------- Gravmag System Gravmag System Cooled Airjet > --- UTILITY ---------- Improved Heat Sink Improved Cooling System Advanced Targeting Computer Core Analyzer Transmission Jammer > --- WEAPON ----------- Shock Rifle Shock Rifle Plasma Cannon > --- INVENTORY -------- Authchip [R/Combat] Authchip [R/Combat] Relay Coupler [Grunt] Relay Coupler [Hunter] Assault Cannon [Rating: 50] Favorites ----------- Power Nuclear Core Engine Ion Engine Power Core Nuclear Core Propulsion Aluminum Leg Treads Advanced Treads Leg Aluminum Leg Hover Unit Aerolev Unit Flight Unit Improved Flight Unit Utility Advanced Targeting Computer Device Improved Heat Sink Storage Medium Storage Unit Processor Advanced Targeting Computer Protection Hardened Light Armor Plating Weapon Minigun Energy Gun Advanced Beam Rifle Energy Cannon Plasma Cannon Ballistic Gun Minigun Ballistic Cannon Improved Light Cannon Launcher Improved Grenade Launcher Special Weapon Remote Datajack Build | -11 -10 -9 -8 -8 -7 ------- Run | Yrd Mat Mat Mat Gar Fac Slots Evolved 6 | . . 2 2 . 2 Power 1 | . . . . . 1 Propulsion 1 | . . 1 . . . Utility 3 | . . 1 1 . 1 Weapon 1 | . . . 1 . . Parts Attached 88 | 6 6 16 29 11 20 Power 11 | 1 1 2 5 . 2 Engine 5 | 1 . 2 2 . . Core 6 | . 1 . 3 . 2 Reactor . | . . . . . . Propulsion 27 | 2 3 5 10 3 4 Treads 2 | . . . 2 . . Leg 15 | 2 3 4 3 3 . Wheel . | . . . . . . Hover 8 | . . . 4 . 4 Flight 2 | . . 1 1 . . Utility 21 | 1 2 3 7 4 4 Device 9 | . . 1 2 3 3 Storage 5 | 1 1 . 3 . . Processor 4 | . 1 1 1 . 1 Hackware . | . . . . . . Protection 3 | . . 1 1 1 . Artifact . | . . . . . . Weapon 29 | 2 . 6 7 4 10 Energy Gun 7 | . . 1 3 . 3 Energy Cannon 2 | . . 1 . . 1 Ballistic Gun 13 | 2 . 3 3 3 2 Ballistic Cannon 3 | . . 1 . 1 1 Launcher 2 | . . . 1 . 1 Special Weapon 2 | . . . . . 2 Impact Weapon . | . . . . . . Slashing Weapon . | . . . . . . Piercing Weapon . | . . . . . . Special Melee Weapon . | . . . . . . Unidentified Prototypes 11 | . . 3 4 . 4 Parts Lost 46 | . . 5 11 5 25 Power 7 | . . 2 2 . 3 Propulsion 12 | . . 1 3 2 6 Utility 9 | . . 1 1 2 5 Weapon 18 | . . 1 5 1 11 Highest Loss Streak 10 | . . 3 2 2 10 To Critical Strikes . | . . . . . . Average Backups 6 | 1 7 8 7 6 4 Power . | . 1 1 1 1 . Propulsion 1 | . 1 2 2 . . Utility 3 | . 3 3 3 3 3 Weapon 1 | . 1 1 1 1 . Tool/Special . | . . . . . . Unused Backups 9 | . 1 . 1 2 5 Power . | . . . . . . Propulsion . | . . . . . . Utility 8 | . 1 . 1 2 4 Weapon 1 | . . . . . 1 Tool/Special . | . . . . . . Average Slot Usage (%) 91 | . 99 99 92 94 71 Engine 4 | . 9 5 6 . 3 Core 6 | . 4 5 2 9 8 Leg 16 | . 28 32 11 13 4 Hover 6 | . . . 6 9 11 Device 8 | . . 5 2 14 13 Storage 10 | . 14 11 17 10 . Processor 9 | . 13 11 9 9 9 Protection 2 | . . 4 5 . 2 Energy Gun 4 | . . 2 1 9 3 Energy Cannon 1 | . . 4 . . 2 Ballistic Gun 14 | . 28 8 23 9 7 Ballistic Cannon 1 | . . 6 . 1 . Launcher 2 | . . . . 7 . Peak Build Rating 50 | 6 10 17 38 38 50 Average Rating 24 | 4 8 14 25 31 34 On Entrance 16 | . 6 10 15 38 31 Avg Prop Armor Cover (%) 5 | . . . 7 5 . Naked Turns . | . . . . . . Heaviest Build 34 | 14 19 26 34 26 31 Greatest Support 42 | 20 20 36 42 24 32 Greatest Overweight (x) 5 | 2 . . 3 2 5 Average Overweight (x) . | . . . . . . Largest Inventory Capacity 10 | 8 10 10 10 8 5 Average Capacity 8 | 7 9 10 9 7 5 Most Carried 10 | 2 10 10 10 8 5 Average Carried 6 | 1 7 8 7 7 4 Final Capacity 10 | 8 10 10 8 5 5 Final Carried 10 | 2 10 8 8 5 3 Class Distribution -------------------- 31% | Mutant 31% | Gunner 28% | Scavenger-Gunner 8% | Scavenger-Mutant Dominant Class ---------------- Mutant | -10/Materials Scavenger-Mutant | -9/Materials Gunner | -8/Materials Scavenger-Gunner | -8/Garrison Mutant | -7/Factory Resources | -11 -10 -9 -8 -8 -7 ----------- Run | Yrd Mat Mat Mat Gar Fac Matter Collected 4158 | 231 571 695 1347 633 681 Remotely . | . . . . . . Salvage Created 4881 | . 601 1162 1890 704 524 Parts 288 | . 35 66 127 38 22 Haulers Intercepted 12 | . 2 6 4 . . Recyclers Shooed 3 | . . . 3 . . Parts Field Recycled . | . . . . . . Retrieved Matter . | . . . . . . Parts Self-Destructed . | . . . . . . Prevented . | . . . . . . Parts Restored . | . . . . . . Kills | -11 -10 -9 -8 -8 -7 ------- Run | Yrd Mat Mat Mat Gar Fac Combat Hostiles Destroyed 110 | . 9 22 40 23 16 Guns 78 | . 9 6 38 10 15 Cannons 19 | . . 16 1 1 1 AOE 13 | . . . 1 12 . Classes Destroyed 15 | . 5 4 3 1 2 Worker 4 | . . . 4 . . Builder 5 | . 1 1 3 . . Tunneler 1 | . . . . . 1 Hauler 12 | . 2 6 4 . . Recycler 4 | . . 3 1 . . Operator 2 | . 1 . 1 . . Watcher 9 | . 2 3 3 . 1 Swarmer 32 | . . 10 16 6 . Grunt 45 | . 9 6 18 12 . Brawler 2 | . . 1 . 1 . Duelist 1 | . . . 1 . . Sentry 13 | . . 5 4 2 2 Hunter 3 | . . . 1 1 1 Programmer 3 | . . . . 1 2 Assembled 11 | . . . . . 11 Best Kill Streak 14 | . 3 14 11 3 7 Combat Bots Only 9 | . 2 9 8 3 7 Max Kills in Single Turn 2 | . 1 2 2 2 2 Gunslinging 1 | . . . 1 . . Exploded 2 | . . . 1 2 . Melee . | . . . . . . Uniques/NPCs Destroyed . | . . . . . . Combat | -11 -10 -9 -8 -8 -7 -------- Run | Yrd Mat Mat Mat Gar Fac Hostile Shots Fired 649 | . 51 132 163 68 235 Missed 200 | . 17 44 38 24 77 Hits 449 | . 34 88 125 44 158 Melee 8 | . . . . . 8 Projectile 441 | . 34 88 125 44 150 AOE 2 | . . . . . 2 Critical Strikes 7 | . . . 2 2 3 Damage Taken 6558 | . 401 915 1683 765 2794 Core 1224 | . 115 129 149 74 757 Absorbed by Shields . | . . . . . . Core Remaining (%) 70 | 100 54 67 . 59 . Volleys Fired 411 | . 59 94 127 57 74 Largest 3 | . 2 2 3 3 3 Hottest 180 | . 40 101 111 147 180 Shots Fired 910 | . 118 181 347 123 141 Gun 747 | . 118 79 336 91 123 Cannon 134 | . . 102 7 7 18 Launcher 29 | . . . 4 25 . Special . | . . . . . . Kinetic 732 | . 118 128 335 49 102 Thermal 128 | . . 53 8 49 18 Explosive 29 | . . . 4 25 . Electromagnetic 21 | . . . . . 21 Robot Hit Streak 15 | . 10 15 15 6 11 Robot Miss Streak 5 | . 5 4 4 3 4 Penetration Max 1 | . . . . . 1 Secondary Targets 13 | . 2 2 8 . 1 Max Gunslinging Chain 1 | . 1 1 1 . 1 Shots Hit Robots 497 | . 72 101 207 38 79 Core Hits 244 | . 31 45 89 45 34 Critical Kills 1 | . . 1 . . . Critical Parts Destroyed 1 | . . 1 . . . Critical Strikes 8 | . . 5 1 1 1 Burn 3 | . . 1 1 1 . Destroy 2 | . . 2 . . . Blast 2 | . . 2 . . . Corrupt 1 | . . . . . 1 Melee Attacks . | . . . . . . Impact . | . . . . . . Slashing . | . . . . . . Piercing . | . . . . . . Sneak Attacks . | . . . . . . Combat Hostiles . | . . . . . . Follow-up Attacks . | . . . . . . Damage Inflicted 10106 | . 967 1863 3864 1805 1607 Guns 7055 | . 967 705 3357 672 1354 Cannons 1550 | . . 1158 63 76 253 Explosions 1501 | . . . 444 1057 . Melee . | . . . . . . Ramming . | . . . . . . Kinetic 7214 | . 967 1313 3300 468 1166 Thermal 1440 | . . 550 364 280 246 Explosive 1257 | . . . 200 1057 . Electromagnetic 195 | . . . . . 195 Impact . | . . . . . . Slashing . | . . . . . . Piercing . | . . . . . . Highest Corruption 5 | . . 2 . . 5 Average Corruption 2 | . . 1 . . 4 Corruption Purged . | . . . . . . Corruption Blocked . | . . . . . . Effects 37 | . . 10 . . 27 Message Errors 9 | . . 3 . . 6 Matter Fused 11 | . . 4 . . 7 Heat Flow Errors 6 | . . . . . 6 Energy Discharges 3 | . . 1 . . 2 Parts Rejected 1 | . . . . . 1 Parts Fused 1 | . . . . . 1 Data Loss (minor) 1 | . . . . . 1 Misfires 1 | . . 1 . . . Alerts 2 | . . 1 . . 1 Weapon Failures 2 | . . . . . 2 Overload Shots . | . . . . . . Overflow Damage 194 | . . 6 172 16 . Projectiles 6 | . . 6 . . . Explosions 188 | . . . 172 16 . Melee . | . . . . . . Knockbacks 7 | . . 5 1 1 . Impact . | . . . . . . Kinetic 7 | . . 5 1 1 . Secondary . | . . . . . . Self-Inflicted Damage 99 | . . . 99 . . Shots 1 | . . . 1 . . Rammed . | . . . . . . Targets Rammed . | . . . . . . Kicked . | . . . . . . Crushed . | . . . . . . Highest Temperature 446 | . 9 446 412 57 197 Average Temperature 72 | . 3 111 54 20 59 Received Heat Transfer 1389 | . 219 153 648 225 144 Effects 6 | . . 5 1 . . Shutdowns 2 | . . 1 1 . . Interference 2 | . . 2 . . . Damage (minor) 2 | . . 2 . . . Siege Activations . | . . . . . . Martial Activations . | . . . . . . Shielding Activations . | . . . . . . Robots Disrupted . | . . . . . . Combat Hostiles . | . . . . . . Robots Corrupted . | . . . . . . Combat Hostiles . | . . . . . . Parts Fried 1 | . . . . . 1 Impact Corruptions . | . . . . . . Robots Melted . | . . . . . . Combat Hostiles . | . . . . . . Parts Melted 2 | . . . 1 . 1 Heat Transferred 2709 | . . 1184 446 592 487 Parts Sabotaged . | . . . . . . Parts Stolen . | . . . . . . Parts Stripped . | . . . . . . Power Chain Reactions . | . . . . . . Alert | -11 -10 -9 -8 -8 -7 ------- Run | Yrd Mat Mat Mat Gar Fac Maximum Alert Level 5 | . . 1 3 5 3 Low Security (%) 30 | 100 100 58 35 . . Level 1 14 | . . 41 39 . . Level 2 13 | . . . 14 5 49 Level 3 19 | . . . 10 26 50 Level 4 15 | . . . . 48 . Level 5 6 | . . . . 19 . High Security . | . . . . . . Max Security . | . . . . . . Peak Influence 1937 | . 79 276 729 1937 1016 Initial 1016 | . . . 88 455 1016 Average 627 | . 23 124 308 1289 728 Influence Increases 4035 | . 313 680 1229 1532 281 Destroy 0b10 Robot/C 1980 | . 180 440 800 460 100 Destroy 0b10 Robot/NC 190 | . 30 65 80 . 15 Destroy Leader 432 | . 58 128 164 30 52 Trap Triggered on 0b10 60 | . . . . 60 . Successful Hack 37 | . 15 12 5 . 5 Disable Machine 180 | . 15 15 60 75 15 Anti-Garrison Action 700 | . . . . 700 . Destroy Structure 171 | . . 5 30 132 4 Partial Spotted 30 | . . 15 . . 15 Lose Combat Pursuer 255 | . 15 . 90 75 75 Influence Decreases 3490 | . 313 470 738 296 1673 Entered New Map 1289 | . . . 122 246 921 Time Decay 1741 | . 313 420 506 . 502 Lost Part 460 | . . 50 110 50 250 Squads Dispatched 20 | . 2 3 10 . 5 Investigation 3 | . . . 2 . 1 Extermination 3 | . . . . . 3 Reinforcement 8 | . 2 3 2 . 1 Assault . | . . . . . . Garrison 6 | . . . 6 . . Intercept . | . . . . . . Searches Triggered . | . . . . . . Construction Impeded . | . . . . . . Haulers Reinforced . | . . . . . . Active Scanning Responses . | . . . . . . Cargo Convoy Interrupts . | . . . . . . Stealth | -11 -10 -9 -8 -8 -7 --------- Run | Yrd Mat Mat Mat Gar Fac Distress Signals 4 | . . 2 2 . . Communications Jammed 9 | . . . . . 9 Distress Signals 1 | . . . . . 1 Times Spotted 167 | . 18 34 57 28 30 Peak Tracking Total 7 | . 3 6 6 5 7 Tactical Retreats 17 | . 1 . 5 3 8 Traps | -11 -10 -9 -8 -8 -7 ------- Run | Yrd Mat Mat Mat Gar Fac Traps Triggered 13 | . . 2 2 7 2 Indirectly . | . . . . . . Trap Hack Attempts . | . . . . . . Triggered . | . . . . . . Disarmed . | . . . . . . Reprogrammed . | . . . . . . Reused 6 | . . . . 6 . Traps Extracted . | . . . . . . Installed 8 | . . . . 8 . Triggered 6 | . . . . 6 . Most Traps Carried 3 | . . . . 3 . Machines | -11 -10 -9 -8 -8 -7 ---------- Run | Yrd Mat Mat Mat Gar Fac Machines Disabled 19 | . 1 1 4 12 1 Max in Single Turn 2 | . 1 1 2 1 1 Garrison Relay 5 | . . . . 5 . Machines Repaired . | . . . . . . Machines Dismantled . | . . . . . . Machines Sabotaged . | . . . . . . Overloaded Fab Kills . | . . . . . . Hacking | -11 -10 -9 -8 -8 -7 --------- Run | Yrd Mat Mat Mat Gar Fac Machines Accessed 17 | . 3 3 4 3 4 Terminals 12 | . 3 2 3 3 1 Fabricators 1 | . . . . . 1 Repair Stations 1 | . . . . . 1 Recycling Units . | . . . . . . Scanalyzers 2 | . . 1 . . 1 Garrison Access 1 | . . . 1 . . Total Hacks 34 | . 5 5 9 9 6 Successful 15 | . 4 4 3 . 4 Failed 19 | . 1 1 6 9 2 Catastrophic 4 | . . . 2 2 . Database Lockouts . | . . . . . . Manual 2 | . . . 2 . . Terminals 28 | . 5 4 8 9 2 Fabricators 1 | . . . . . 1 Repair Stations 2 | . . . . . 2 Recycling Units . | . . . . . . Scanalyzers 2 | . . 1 . . 1 Garrison Access 1 | . . . 1 . . Terminal Hacks 10 | . 4 3 2 . 1 Robot Analysis 2 | . 2 . . . . Prototype ID Bank 1 | . . 1 . . . Open DSF 1 | . . . . . 1 Alert Level 1 | . . 1 . . . Transport Status 1 | . . . 1 . . Hauler Manifests 1 | . 1 . . . . Registered Components 1 | . . 1 . . . Zone Layout 2 | . 1 . 1 . . Fabricator Hacks 1 | . . . . . 1 Network Status 1 | . . . . . 1 Repair Station Hacks 1 | . . . . . 1 Refit 1 | . . . . . 1 Recycling Unit Hacks . | . . . . . . Scanalyzer 2 | . . 1 . . 1 Retrieve Study 2 | . . 1 . . 1 Garrison Access Hacks 1 | . . . 1 . . Unlock Access 1 | . . . 1 . . Unauthorized Hacks . | . . . . . . Terminals . | . . . . . . Fabricators . | . . . . . . Repair Stations . | . . . . . . Recycling Units . | . . . . . . Scanalyzers . | . . . . . . Garrison Access . | . . . . . . Data Cores Recovered 1 | . . . 1 . . Used . | . . . . . . Hacking Detections 11 | . 1 1 4 3 2 Full Trace Events 5 | . . . 1 3 1 Feedback Events . | . . . . . . Feedback Blocked . | . . . . . . Robot Schematics Acquired . | . . . . . . Robots Built . | . . . . . . Authchips . | . . . . . . Time . | . . . . . . Total Robot Build Rating . | . . . . . . Part Schematics Acquired . | . . . . . . Parts Built . | . . . . . . Authchips . | . . . . . . Time . | . . . . . . Total Part Build Rating . | . . . . . . Part Studies Acquired 2 | . . 1 . . 1 Parts Repaired . | . . . . . . Time . | . . . . . . Parts Recycled . | . . . . . . Recycled Matter . | . . . . . . Retrieved Matter . | . . . . . . Retrieved Components . | . . . . . . Parts Scanalyzed . | . . . . . . Part Schematics Acquired . | . . . . . . Parts Damaged . | . . . . . . Bothacking | -11 -10 -9 -8 -8 -7 ------------ Run | Yrd Mat Mat Mat Gar Fac Used RIF Installer 1 | . . . . 1 . Robots Hacked . | . . . . . . Non-combat . | . . . . . . Combat . | . . . . . . Robot Hacks Applied . | . . . . . . Relay Couplers Released 22 | . . . . 22 . Machine Destruction 19 | . . . . 19 . Programmers 3 | . . . . 3 . Fabnet Peak Effective % . | . . . . . . Robots Rewired . | . . . . . . Allies Hacked . | . . . . . . Hacks Repelled . | . . . . . . Allies | -11 -10 -9 -8 -8 -7 -------- Run | Yrd Mat Mat Mat Gar Fac Total Allies . | . . . . . . Largest Group . | . . . . . . Highest-Rated Group . | . . . . . . Highest-Rated Ally . | . . . . . . Total Orders . | . . . . . . Ally Attacks . | . . . . . . Total Damage . | . . . . . . Kills . | . . . . . . Allies Corrupted . | . . . . . . Allies Melted . | . . . . . . Intel | -11 -10 -9 -8 -8 -7 ------- Run | Yrd Mat Mat Mat Gar Fac Active Infowar (turns) 364 | . . . . . 364 Jamming 364 | . . . . . 364 Robot Analysis Total 2 | . 2 . . . . Derelict Logs Recovered . | . . . . . . Drone Launches . | . . . . . . Drone Recoveries . | . . . . . . Exploration | -11 -10 -9 -8 -8 -7 ------------- Run | Yrd Mat Mat Mat Gar Fac Turns Passed 7061 | 66 966 1095 1361 2231 1342 Spaces Moved 4736 | 44 634 652 776 1295 1335 Core 37 | 8 . . . . 29 Treads 122 | . . . 122 . . Legs 2577 | 36 634 652 226 853 176 Wheels . | . . . . . . Hover 2000 | . . . 428 442 1130 Flight . | . . . . . . Fastest Speed 42 | 50 120 120 42 42 43 Average Speed 115 | 127 120 120 113 149 78 Slowest Speed 330 | 190 120 120 330 260 300 Overloaded Moves 6 | . . . . . 6 Propulsion Burnouts . | . . . . . . Robots Hopped . | . . . . . . Potential Cave-ins . | . . . . . . Cave-ins Triggered . | . . . . . . Exploration Rate (%) 54 | 3 87 49 59 94 33 Regions Visited 5 Branch Regions . Pre-discovered Areas . | . . . . . . Known Exits Taken 1 | . . . 1 . . Unknown Exits Taken 3 | 1 1 1 . . . Scrap Searched . | . . . . . . Spaces Dug 3 | . . . . 3 . Terrain Destroyed 187 | . . 5 31 147 4 Melee . | . . . . . . Projectile 7 | . . 5 . . 2 AOE 178 | . . . 31 147 . Terrain Rammed . | . . . . . . Walls Destroyed . | . . . . . . Machines Disabled . | . . . . . . Actions | -11 -10 -9 -8 -8 -7 --------- Run | Yrd Mat Mat Mat Gar Fac Total 5560 | 51 722 786 1003 1504 1494 Wait 183 | . 12 13 39 74 45 Move 4732 | 43 633 651 776 1294 1335 Hop . | . . . . . . Pick Up 49 | 2 8 4 14 15 6 Fast Attach 33 | 6 1 . 7 3 16 Attach 26 | . . 7 11 3 5 Detach 2 | . . . . 1 1 Swap 53 | . 5 14 18 10 6 Drop 43 | . 4 3 11 19 6 Fire 411 | . 59 94 127 57 74 Melee . | . . . . . . Ram . | . . . . . . Kick . | . . . . . . Crush . | . . . . . . Escape Stasis 20 | . . . . 20 . Rewire . | . . . . . . Trap 8 | . . . . 8 . Miscellaneous . | . . . . . . Route ------- -11/Scrapyard -10/Materials (discovered 4 exits: *Mat x2 / [*Min x2]) -9/Materials (discovered 3 exits: *Mat / [*Min] / [*Sto]) -8/Materials (discovered 2 exits: *Fac / Gar) -8/Garrison (discovered 3 exits: *Fac x3) -7/Factory (discovered 1 exit: [*Low]) History --------- Turn | Location | Event 13 | -11/Scrapyard | Discovered new exit (range 15) 67 | -11/Scrapyard | Entered Materials 318 | -10/Materials | Build established: Mutant 408 | -10/Materials | Discovered new exit (range 16) 537 | -10/Materials | Discovered new exit (range 15) 667 | -10/Materials | Discovered new exit (range 3) 948 | -10/Materials | Discovered new exit (range 8) 1033 | -10/Materials | Entered another Materials area 1033 | -9/Materials | Evolved 2 slots: Propulsion x1, Utility x1 1344 | -9/Materials | Build established: Scavenger-Mutant 1424 | -9/Materials | Discovered new exit (range 13) 1667 | -9/Materials | Lost 3 parts (2p1u) 1699 | -9/Materials | Discovered new exit (range 16) 1700 | -9/Materials | Destroyed 9 combat bots 1897 | -9/Materials | Build established: Mutant 2051 | -9/Materials | Discovered new exit (range 8) 2128 | -9/Materials | Entered another Materials area 2128 | -8/Materials | Evolved 2 slots: Utility x1, Weapon x1 2268 | -8/Materials | Destroyed 8 combat bots 2547 | -8/Materials | Garrison activated, responded to threat 2563 | -8/Materials | Build established: Gunner 2641 | -8/Materials | Discovered new exit (range 16) 3035 | -8/Materials | Garrison activated, responded to threat 3489 | -8/Materials | Identified exit to Garrison 3489 | -8/Materials | Entered Garrison 3547 | -8/Garrison | Triggered checkpoint 3556 | -8/Garrison | Garrison Relay disabled 3755 | -8/Garrison | Triggered checkpoint 3971 | -8/Garrison | Garrison Relay disabled 4074 | -8/Garrison | Triggered checkpoint 4082 | -8/Garrison | Triggered checkpoint 4175 | -8/Garrison | Discovered new exit (range 10) 4199 | -8/Garrison | Triggered checkpoint 4246 | -8/Garrison | Garrison Relay disabled 4313 | -8/Garrison | Installed Relay Interface Framework 4535 | -8/Garrison | Build established: Scavenger-Gunner 4705 | -8/Garrison | Garrison Relay disabled 4762 | -8/Garrison | Discovered new exit (range 14) 5299 | -8/Garrison | Garrison Relay disabled 5334 | -8/Garrison | Discovered new exit (range 15) 5720 | -8/Garrison | Entered Factory 5720 | -7/Factory | Evolved 2 slots: Power x1, Utility x1 6036 | -7/Factory | Assembled infested ambush trap array 6118 | -7/Factory | Destroyed 7 combat bots 6120 | -7/Factory | Lost 3 parts (1p1n1w) 6175 | -7/Factory | Lost 4 parts (1n1u2w) 6458 | -7/Factory | Lost 3 parts (1p1u1w) 6508 | -7/Factory | Core integrity fell below 50% 6538 | -7/Factory | Lost 4 parts (1p3w) 6785 | -7/Factory | Build established: Mutant 6973 | -7/Factory | Discovered new exit (range 10) 7041 | -7/Factory | Core integrity fell below 20% 7062 | -7/Factory | Destroyed by H-61 Shepherd with Heavy Assault Cannon Last Messages --------------- 07046_ H-61 Shepherd call for reinforcements jammed. 07046_ Knocked back. 07047_ Acquired 4 matter. 07048_ H-61 Shepherd call for reinforcements jammed. 07048_ Cld. Airjet destroyed. 07050_ H-61 Shepherd call for reinforcements jammed. 07050_ Knocked back. 07051_ System corrupted: Plasma Cannon failed to cycle. 07052_ Imp. Cooling System destroyed. 07052_ Transmission Jammer destroyed. 07052_ Gravmag System+ destroyed. 07052_ Knocked back. 07055_ H-61 Shepherd calls for reinforcements. 07055_ ALERT: Hostile activity reported, dispatching reinforcements to area. 07055_ Penetrated by Slug. 07059_ Plasma Cannon destroyed. 07059_ Gravmag System+ destroyed. 07059_ Critical hit (Blast). 07060_ 4K=ZIP|CP FB=:NHDJ&%#YO Map ----- +----------------------------------------------------+ | | | | | | | | | | | | | | | | | | | | | | | | | | | | | | | | | | | | | | | | | | | | | | | | | ????????????????###; % ;;#??????????????????? | | ????????????????# @ =;##?????????????????? | | ????????????????# % ; #?????????????????? | | ????????????????# ;;##########????????? | | ????????????????# ; #????##### | | ????????????????# ; ##### #????# | | ????????????????##;;; ;; #???# ###### | | ?????????????????### ; #???# ## " | | ???????????????????#;; ;;;#######???# ## ### | | ??????????????????? ## ????????# ## #?# | | ??????????????????#### #? ???????# ## #?## ## | | ?????????????????????# #? ??????# ## #??# ## | | ????????????????????? H %? ?????# ##[##?# | | ????????????????????? ?#+########## #!%!#?#### | | ????????????????????? ==*#????? | | ???????????????????? ! #?????#########% #????? | | ????????????????????# #?????????????## ##????? | | ????????????????????###+###?????????????# % #????? | | ??????????????????????? ????????????????# ! #????? | | ????????????????????????????????????????## ##????? | | ?????????????????????????????????????????###?????? | | ?????????????????????????????????????????????????? | | ?????????????????????????????????????????????????? | | ?????????????????????????????????????????????????? | | ????????????????????????????????????????????????? | | ????????????????????????????????????????????????? | +----------------------------------------------------+ Best States ------------- Heat Dissipation 67 Energy Generation 25 Energy Capacity 420 Matter Stores 450 Matter Capacity 450 Sight Range 16 Terrain Scan Density 10 Jamming Range 12 Additional Mass Support 6 Armor Coverage 150 Evasion (%) 56 Targeting Accuracy 8 Core Analysis 6 Recoil Reduction 2 Authchip Count 2 Item Schematics ----------------- None Robot Schematics ------------------ None Fabricated ------------ Nothing Repaired ---------- Nothing Studied --------- Ion Engine | -9/Materials | Hacked Gravmag System | -7/Factory | Hacked Alien Tech Used ----------------- None Achievements -------------- None Challenges ------------ None Game ------ Seed RegenerativeSigixMeganuke Manual? 0 Play Time 00:57:00 Cumulative 55.1 hours Start 2026.04.12 @ 13:23:32 End 2026.04.12 @ 14:19:40 Sessions 1 Manual Loads 0 Difficulty Rogue Special Mode None Game No. 94 Rogue 94 Adventurer 0 Explorer 0 Win Type - Total 0 Types 0/0/0/0/0/0/0/0/0/0 Lore% 20 Gallery% 27 Achievement% 23 Wizard Run 0 Options --------- Layout 0 ASCII 0 Keyboard 0 Movement Mouse Keybinds 0 Fullscreen 1 Font 24/Smallcaps Map View 38x25 Zoom Use 99% Tactical HUD 1 Map Filters NONE Filters NONE Steam 1 RUN: 79d182af-ec06-4fbc-9ac8-9f8e5e34e2a5